bitfinex-derivatives/quotes_ETHF0:USTF0_20241005
["timestamp","ask_amount","ask_price","bid_price","bid_amount"]
[1728093113410,1.32938,2418.9,2418.7,0.28939]
[1728093113615,1.32938,2418.9,2418.6,1.2259]
[1728093113818,1.32938,2418.9,2418.6,1.5153]
[1728093115222,1.32938,2418.9,2418.6,1.2259]
[1728093115424,1.32938,2418.9,2418.7,0.28939]
[1728093117337,1.32938,2418.9,2418.6,1.5153]
[1728093120039,1.04,2418.9,2418.6,1.5153]
[1728093120240,0.28939,2418.8,2418.6,1.2259]
[1728093120637,0.4049,2418.7,2418.6,1.2259]
[1728093120943,0.4049,2418.7,2418.6,1.5153]
[1728093126139,0.28936,2419.0,2418.6,1.2259]
[1728093126343,0.70116,2419.0,2418.7,0.28938]
[1728093127942,0.4118,2419.0,2418.7,0.28938]
[1728093128135,0.4118,2419.0,2418.6,2.30922467]
[1728093128136,0.28938,2418.8,2418.6,2.59862467]
[1728093128537,0.4118,2419.0,2418.6,2.59862467]
[1728093128538,0.28938,2418.9,2418.6,2.59862467]
[1728093128947,0.28938,2418.9,2418.6,2.30922467]
[1728093129243,0.28938,2418.9,2418.7,0.81607717]
[1728093129449,0.28938,2418.9,2418.7,1.37271467]
[1728093132242,0.70116,2419.0,2418.7,1.08332467]
[1728093132439,0.70116,2419.0,2418.8,0.28938]
[1728093132640,0.70116,2419.0,2418.7,1.37271467]
[1728093133049,0.28937,2418.9,2418.7,1.08332467]
[1728093133250,0.28937,2418.9,2418.7,1.37271467]
[1728093133453,0.70116,2419.0,2418.7,1.37271467]
[1728093135750,0.70116,2419.0,2418.8,0.52689918]
[1728093135948,0.70116,2419.0,2418.7,1.37271467]
[1728093136246,0.70116,2419.0,2418.8,0.52691295]
[1728093136448,0.28938,2418.8,2418.7,1.08332467]
[1728093136652,0.28938,2418.8,2418.7,1.61024532]
[1728093137054,0.28938,2418.8,2418.7,1.08332467]
[1728093137255,0.28938,2418.8,2418.7,1.61024669]
[1728093138047,1.08808,2418.8,2418.7,1.61024669]
[1728093140244,1.08808,2418.8,2418.7,1.61025791]
[1728093143554,1.08808,2418.8,2418.7,1.08332467]
[1728093143757,1.08808,2418.8,2418.7,1.61033746]
[1728093146262,2.12808,2418.8,2418.7,1.61033746]
[1728093146864,2.12808,2418.8,2418.7,1.08332467]
[1728093147063,2.12808,2418.8,2418.7,1.61044981]
[1728093148767,1.08808,2418.8,2418.7,1.61044981]
[1728093149961,1.08808,2418.8,2418.7,1.08332467]
[1728093150667,1.08808,2418.8,2418.7,1.61055664]
[1728093159273,1.08808,2418.8,2418.7,3.1870864]
[1728093159672,1.08808,2418.8,2418.7,1.61055664]
[1728093160074,1.08808,2418.8,2418.7,1.08332467]
[1728093160275,1.08808,2418.8,2418.7,1.61071322]
[1728093160472,1.08808,2418.8,2418.7,1.61071014]
[1728093161176,2.12808,2418.8,2418.7,1.61071014]
[1728093162266,2.12808,2418.8,2418.7,0.52738547]
[1728093163365,0.28939,2418.7,2418.6,1.50372467]
[1728093163578,0.67969,2418.7,2418.6,3.6075299]
[1728093166580,0.67969,2418.7,2418.6,3.0801685]
[1728093166879,0.67969,2418.7,2418.6,3.60749052]
[1728093169381,0.67969,2418.7,2418.6,3.60728313]
[1728093169874,0.67969,2418.7,2418.6,1.50372467]
[1728093170075,0.67969,2418.7,2418.6,3.60723849]
[1728093170281,0.67969,2418.7,2418.6,3.60724337]
[1728093170686,0.67969,2418.7,2418.6,2.03101458]
[1728093170869,0.67969,2418.7,2418.6,3.60720998]
[1728093171478,0.67969,2418.7,2418.6,3.60717774]
[1728093172277,0.67969,2418.7,2418.6,3.07988783]
[1728093172478,0.67969,2418.7,2418.6,3.60714688]
[1728093173179,0.67969,2418.7,2418.6,3.07988783]
[1728093173382,0.67969,2418.7,2418.6,3.6071483]
[1728093176686,0.67969,2418.7,2418.6,3.07988783]
[1728093176887,0.67969,2418.7,2418.6,3.60716891]
[1728093177188,0.67969,2418.7,2418.6,3.60721404]
[1728093178082,0.67969,2418.7,2418.6,3.07993296]
[1728093178385,0.67969,2418.7,2418.6,3.60722014]
[1728093180080,0.67969,2418.7,2418.6,3.07993296]
[1728093180382,0.28939,2418.7,2418.6,4.14885794]
[1728093182098,0.28939,2418.7,2418.6,4.43825794]
[1728093182383,0.28939,2418.7,2418.6,4.14885794]
[1728093183094,0.28939,2418.7,2418.6,4.14905259]
[1728093183283,0.28939,2418.7,2418.6,4.43845259]
[1728093183587,0.69419,2418.8,2418.6,4.43845259]
[1728093183787,0.69419,2418.8,2418.7,1.61256351]
[1728093184186,0.69419,2418.8,2418.7,3.18898477]
[1728093185593,0.69419,2418.8,2418.7,2.66168062]
[1728093185895,0.69419,2418.8,2418.7,3.18903659]
[1728093186387,0.4048,2418.8,2418.7,3.18903659]
[1728093186592,0.69418,2418.8,2418.7,3.18903659]
[1728093187297,0.4048,2418.8,2418.7,3.18903659]
[1728093188091,0.4048,2418.8,2418.7,3.18912477]
[1728093188288,0.4048,2418.8,2418.7,3.47851477]
[1728093189394,0.4048,2418.8,2418.7,3.47854825]
[1728093189793,0.4048,2418.8,2418.7,2.10389889]
[1728093190091,0.4048,2418.8,2418.7,3.18923943]
[1728093190292,0.4048,2418.8,2418.7,3.47862943]
[1728093190690,0.4048,2418.8,2418.7,3.18923943]
[1728093191496,0.4048,2418.8,2418.7,3.47862943]
[1728093192298,0.69418,2418.8,2418.7,1.08534054]
[1728093192496,0.69418,2418.8,2418.7,1.61274572]
[1728093193190,1.73418,2418.8,2418.7,1.61277358]
[1728093193398,1.73418,2418.8,2418.7,0.52743304]
[1728093193702,1.73418,2418.8,2418.7,1.61277358]
[1728093195400,1.73418,2418.8,2418.7,1.08534054]
[1728093195597,1.73418,2418.8,2418.7,1.61277133]
[1728093198796,1.73418,2418.8,2418.7,1.08534054]
[1728093199196,1.73418,2418.8,2418.7,1.61276799]
[1728093199392,1.73418,2418.8,2418.7,1.61276912]
[1728093199896,4.2478,2418.9,2418.7,1.61276912]
[1728093200094,4.2478,2418.9,2418.8,0.4221]
[1728093200294,1.04,2418.9,2418.8,2.03485609]
[1728093200496,0.28936,2419.0,2418.8,2.03485609]
[1728093200497,3.3038,2419.2,2418.9,0.28936]
[1728093200796,3.3038,2419.2,2419.1,1.08524258]
[1728093200797,4.2478,2419.2,2419.1,1.08524258]
[1728093200998,4.2478,2419.2,2419.1,3.188978]
[1728093201196,8.3814,2419.2,2419.0,1.08524258]
[1728093201494,8.3814,2419.2,2418.8,1.08524258]
[1728093201495,0.28937,2418.9,2418.8,1.08524258]
[1728093201688,1.32937,2418.9,2418.8,1.61257608]
[1728093205295,1.32937,2418.9,2418.8,1.08524258]
[1728093205498,1.32937,2418.9,2418.8,1.61253331]
[1728093205903,1.04,2418.9,2418.8,1.61253331]
[1728093206810,1.04,2419.0,2418.8,1.90191331]
[1728093207007,1.04,2419.0,2418.9,2.42623331]
[1728093207201,1.32936,2419.0,2418.9,2.42623331]
[1728093207513,1.04,2419.0,2418.9,1.34099073]
[1728093207700,1.04,2419.0,2418.9,2.42623331]
[1728093207899,1.32936,2419.0,2418.9,1.34099073]
[1728093208503,1.32936,2419.0,2418.9,0.8137]
[1728093208708,1.32936,2419.0,2418.9,1.34087569]
[1728093208906,1.32936,2419.0,2418.9,0.8137]
[1728093209101,1.32936,2419.0,2418.9,1.34087566]
[1728093209607,1.32936,2419.0,2418.9,1.34085088]
[1728093211309,1.32936,2419.0,2418.9,0.8137]
[1728093211506,11.1744,2419.0,2418.7,1.08524258]
[1728093211706,0.28938,2418.8,2418.7,1.50094258]
[1728093211904,0.28938,2418.8,2418.7,0.4157]
[1728093212105,0.69268,2418.8,2418.7,0.4157]
[1728093213405,0.28939,2418.7,2418.6,0.3918]
[1728093213604,1.32939,2418.7,2418.6,0.3918]
[1728093213806,1.04,2418.7,2418.6,0.3918]
[1728093219109,1.04,2418.7,2418.5,0.4264]
[1728093219110,0.2894,2418.6,2418.5,0.4264]
[1728093220706,0.28942,2418.5,2418.4,1.08524258]
[1728093221014,1.32942,2418.5,2418.4,1.61229227]
[1728093222015,1.04,2418.5,2418.4,2.02919227]
[1728093222914,1.32942,2418.5,2418.4,2.02919227]
[1728093223213,1.32942,2418.5,2418.4,0.4169]
[1728093224014,1.32942,2418.5,2418.4,0.94383852]
[1728093224214,1.04,2418.5,2418.4,0.4169]
[1728093224819,1.32942,2418.5,2418.4,2.02904299]
[1728093225112,1.04,2418.5,2418.4,2.02904299]
[1728093225319,1.32942,2418.5,2418.4,0.94380041]
[1728093225616,1.32942,2418.5,2418.4,0.4169]
[1728093225816,1.73962,2418.5,2418.4,0.4169]
[1728093226015,2.14632,2418.5,2418.4,0.4169]
[1728093227013,0.28944,2418.3,2418.2,1.08524258]
[1728093227213,0.28944,2418.3,2418.1,1.50174258]
[1728093227214,0.28945,2418.2,2418.1,1.50174258]
[1728093227423,0.71055,2418.2,2418.1,2.02854034]
[1728093228123,0.4211,2418.2,2418.1,2.02854034]
[1728093229418,0.4211,2418.2,2418.1,2.0283807]
[1728093229730,0.28945,2418.2,2418.1,0.4165]
[1728093229927,0.71055,2418.2,2418.1,0.4165]
[1728093230611,0.4211,2418.2,2418.1,0.4165]
[1728093232417,0.71055,2418.2,2418.1,0.4165]
[1728093234017,0.4211,2418.2,2418.1,0.4165]
[1728093236930,0.71055,2418.2,2418.1,0.4165]
[1728093237829,0.4211,2418.2,2418.1,0.4165]
[1728093238431,0.71055,2418.2,2418.1,0.4165]
[1728093239430,4.2478,2418.3,2418.1,0.4165]
[1728093239622,1.04,2418.3,2418.1,0.4165]
[1728093239828,1.32945,2418.3,2418.1,0.4165]
[1728093240026,1.04,2418.3,2418.1,0.4165]
[1728093240334,0.28945,2418.2,2418.1,0.4165]
[1728093240628,1.32945,2418.3,2418.1,0.4165]
[1728093240822,1.04,2418.3,2418.1,0.4165]
[1728093241027,0.28945,2418.2,2418.1,0.4165]
[1728093241230,1.04,2418.3,2418.0,0.7863]
[1728093241231,0.28946,2418.1,2418.0,0.3882]
[1728093241431,2.15726,2418.1,2418.0,0.3882]
[1728093242223,1.8678,2418.1,2418.0,0.3882]
[1728093253538,2.15726,2418.1,2418.0,0.3882]
[1728093253839,1.8678,2418.1,2418.0,0.3882]
[1728093259430,2.15726,2418.1,2418.0,0.3882]
[1728093259827,0.8278,2418.1,2418.0,0.3882]
[1728093260032,1.8678,2418.1,2418.0,0.3882]
[1728093260232,0.28948,2418.0,2417.9,0.4062]
[1728093260430,1.32948,2418.0,2417.9,0.4062]
[1728093260638,1.04,2418.0,2417.9,0.4062]
[1728093260837,1.4377,2418.0,2417.9,0.4062]
[1728093263443,1.4377,2418.0,2417.9,0.69569]
[1728093263646,1.04,2418.0,2417.9,0.4062]
[1728093266048,1.04,2418.0,2417.9,0.40458888]
[1728093268142,1.04,2418.0,2417.9,0.69407888]
[1728093268546,1.04,2418.0,2417.9,2.30619397]
[1728093268844,1.04,2418.0,2417.9,0.69407888]
[1728093269446,1.04,2418.0,2417.9,2.30625942]
[1728093269856,1.04,2418.0,2417.9,2.30626229]
[1728093272644,1.04,2418.0,2417.9,3.88224293]
[1728093272844,1.04,2418.0,2417.9,3.0658121]
[1728093273246,1.04,2418.0,2417.9,4.12024982]
[1728093274645,1.04,2418.0,2417.9,4.40973982]
[1728093275144,1.04,2418.0,2417.9,4.94944274]
[1728093275952,1.04,2418.0,2417.9,4.42222389]
[1728093276342,1.04,2418.0,2417.9,4.42237332]
[1728093278559,1.04,2418.4,2417.9,12.76893287]
[1728093278749,0.28945,2418.3,2418.2,1.08547909]
[1728093279054,1.32945,2418.3,2418.2,0.5273683]
[1728093279251,1.32945,2418.3,2418.2,0.9498683]
[1728093279858,1.32945,2418.3,2418.2,0.4225]
[1728093280052,1.32945,2418.3,2418.2,0.94993163]
[1728093280253,1.32945,2418.3,2418.2,0.4225]
[1728093280560,1.04,2418.3,2418.2,0.94990631]
[1728093281050,1.04,2418.3,2418.2,2.0353854]
[1728093281854,1.04,2418.4,2418.2,2.0353854]
[1728093282049,4.30721,2418.6,2418.3,1.90227086]
[1728093282248,1.04,2418.4,2418.3,1.08547909]
[1728093282444,1.04,2418.4,2418.3,1.61275875]
[1728093283556,1.04,2418.4,2418.3,1.90219875]
[1728093284454,1.04,2418.4,2418.3,1.61275875]
[1728093285152,1.04,2418.4,2418.3,1.90219875]
[1728093286169,1.04,2418.4,2418.3,0.81671966]
[1728093286461,1.04,2418.4,2418.3,1.37491909]
[1728093286650,0.4057,2418.8,2418.3,5.74767122]
[1728093286858,1.04,2418.7,2418.4,2.29739122]
[1728093287157,1.04,2418.7,2418.5,0.92807412]
[1728093287355,1.32939,2418.7,2418.5,1.48677909]
[1728093288663,1.32939,2418.7,2418.5,0.4013]
[1728093289953,0.2894,2418.6,2418.5,0.4013]
[1728093292964,0.2894,2418.6,2418.5,0.7894]
[1728093295766,1.3294,2418.6,2418.5,0.7894]
[1728093297666,1.04,2418.6,2418.5,1.07882]
[1728093300459,1.04,2418.6,2418.5,0.7894]
[1728093300659,1.7368,2418.6,2418.5,0.3881]
[1728093300868,1.4474,2418.6,2418.3,1.49197909]
[1728093301173,1.32943,2418.4,2418.3,0.4065]
[1728093301563,1.32943,2418.4,2418.3,4.5417]
[1728093302866,1.32943,2418.4,2418.3,4.83114]
[1728093303058,1.04,2418.4,2418.3,4.83114]
[1728093303256,1.04,2418.4,2418.2,4.29327909]
[1728093303457,1.72104,2418.3,2418.2,3.2078]
[1728093303656,1.72104,2418.3,2418.2,4.29327909]
[1728093304470,1.72104,2418.3,2418.2,3.2078]
[1728093312564,1.72104,2418.3,2418.1,0.28946]
[1728093312872,0.4201,2418.2,2418.1,0.28946]
[1728093314568,0.4201,2418.2,2418.0,4.29327909]
[1728093314766,0.4201,2418.2,2418.1,0.28946]
[1728093317167,0.4201,2418.2,2418.0,4.29327909]
[1728093317468,1.04,2418.1,2418.0,0.28948]
[1728093317669,1.04,2418.1,2417.9,2.19315909]
[1728093317966,1.32946,2418.1,2417.9,2.19315909]
[1728093318268,0.28948,2418.0,2417.9,1.90367909]
[1728093318473,0.68358,2418.0,2417.9,2.42998731]
[1728093318674,0.68358,2418.0,2417.9,0.52630822]
[1728093318867,0.68358,2418.0,2417.8,1.08547909]
[1728093319064,1.04,2417.9,2417.8,1.08547909]
[1728093319261,1.04,2417.9,2417.8,1.37497909]
[1728093321774,1.04,2417.9,2417.8,0.2895]
[1728093322074,1.04,2417.9,2417.8,1.37497909]
[1728093322275,1.04,2417.9,2417.8,0.2895]
[1728093322471,1.04,2417.9,2417.7,1.50937909]
[1728093322670,1.04,2417.9,2417.7,1.79888909]
[1728093322872,1.4476,2417.9,2417.7,1.79888909]
[1728093323076,1.4476,2417.9,2417.8,0.2895]
[1728093323768,1.4476,2417.9,2417.7,1.50937909]
[1728093323968,1.7371,2417.9,2417.7,1.50937909]
[1728093325881,1.4476,2417.9,2417.7,1.50937909]
[1728093326075,1.4476,2417.9,2417.7,1.79887909]
[1728093326276,1.4476,2417.9,2417.7,0.4239]
[1728093326482,1.73709,2417.9,2417.7,0.4239]
[1728093326883,1.73709,2417.9,2417.7,0.71341]
[1728093329484,1.4476,2417.9,2417.7,0.71341]
[1728093330380,1.73709,2417.9,2417.7,0.71341]
[1728093330783,1.4476,2417.9,2417.7,0.71341]
[1728093331785,1.73709,2417.9,2417.7,0.71341]
[1728093335487,1.73709,2417.9,2417.7,0.4239]
[1728093336192,0.2895,2417.8,2417.7,0.4239]
[1728093336578,1.7371,2417.9,2417.7,0.4239]
[1728093338987,1.7371,2417.9,2417.7,0.71341]
[1728093340381,1.04,2417.8,2417.6,0.3888]
[1728093340584,0.28952,2417.6,2417.5,0.4008]
[1728093340785,0.28952,2417.6,2417.3,1.62821864]
[1728093340786,0.28955,2417.4,2417.3,0.4008]
[1728093340985,1.04,2417.4,2417.2,0.417]
[1728093341185,0.70336,2417.3,2417.2,0.8178]
[1728093341585,0.4138,2417.3,2417.2,0.8178]
[1728093341786,1.04,2417.4,2417.3,0.28956]
[1728093347098,1.04,2417.4,2417.2,1.10736]
[1728093347802,1.32955,2417.4,2417.2,1.10736]
[1728093349393,1.04,2417.4,2417.0,1.08547909]
[1728093349594,1.04,2417.4,2417.1,0.28958]
[1728093349595,0.4225,2417.3,2417.1,0.28958]
[1728093349793,1.04,2417.2,2417.1,0.28958]
[1728093350196,1.04,2417.2,2417.1,0.69888]
[1728093360011,1.32956,2417.4,2417.1,0.69888]
[1728093360203,1.32956,2417.4,2417.2,0.71587]
[1728093360907,1.32956,2417.4,2417.3,0.4162]
[1728093361511,0.5078,2417.7,2417.3,4.553]
[1728093361803,3.2078,2418.1,2417.5,0.28953]
[1728093361804,0.5097,2417.9,2417.5,0.28953]
[1728093362005,1.3295,2417.8,2417.6,0.8382]
[1728093362203,1.3295,2417.8,2417.6,1.2375]
[1728093362604,1.04,2417.8,2417.6,1.2375]
[1728093362800,0.70319,2417.9,2417.6,1.2375]
[1728093363008,0.2895,2417.8,2417.6,1.52702]
[1728093363812,1.04,2417.9,2417.6,1.2375]
[1728093364108,1.32949,2417.9,2417.7,0.28951]
[1728093366405,1.04,2417.9,2417.6,1.2375]
[1728093366907,0.4115,2417.8,2417.7,0.28951]
[1728093377919,1.04,2417.9,2417.8,0.2895]
[1728093379416,1.74958,2418.0,2417.8,0.2895]
[1728093379917,1.74958,2418.0,2417.9,0.4164]
[1728093383814,1.4601,2418.0,2417.9,0.70589]
[1728093384012,0.4201,2418.0,2417.9,0.70589]
[1728093385328,0.4201,2418.0,2417.9,1.51139]
[1728093390129,1.32946,2418.2,2418.0,0.28947]
[1728093390329,1.72446,2418.2,2418.0,0.28947]
[1728093391531,1.435,2418.2,2418.0,0.28947]
[1728093391725,0.28946,2418.1,2417.9,1.76085785]
[1728093393228,0.28946,2418.1,2417.9,1.51138]
[1728093397130,1.435,2418.2,2417.9,1.2219]
[1728093397330,1.72446,2418.2,2418.0,0.28947]
[1728093398031,0.28946,2418.1,2418.0,0.28947]
[1728093400032,0.28946,2418.1,2417.9,1.51138]
[1728093401532,1.435,2418.2,2417.9,1.51138]
[1728093401533,0.395,2418.2,2418.0,1.04]
[1728093401830,1.136,2418.6,2418.3,0.28944]
[1728093402035,1.136,2418.6,2418.1,1.04]
[1728093402036,6.48060698,2418.5,2418.4,0.4102]
[1728093402334,6.77002698,2418.5,2418.4,0.4102]
[1728093405538,6.48060698,2418.5,2418.2,1.92237909]
[1728093405740,6.48060698,2418.5,2418.3,1.37490909]
[1728093405939,6.48060698,2418.5,2418.3,0.28943]
[1728093406238,6.77002698,2418.5,2418.3,0.28943]
[1728093407533,6.77002698,2418.5,2418.3,1.37490909]
[1728093408634,6.48060698,2418.5,2418.3,2.41490909]
[1728093408839,0.2894,2418.6,2418.4,0.28943]
[1728093409044,0.2894,2418.6,2418.5,0.4137]
[1728093409230,1.1951,2418.7,2418.5,0.8367]
[1728093409433,0.7943,2418.7,2418.5,1.12611]
[1728093409839,0.7943,2418.7,2418.6,1.3294]
[1728093410031,0.38537,2418.9,2418.6,1.04]
[1728093410032,0.4113,2418.9,2418.6,1.04]
[1728093410342,0.4201,2419.0,2418.8,0.28938]
[1728093410642,0.096,2419.2,2418.9,2.56737]
[1728093410643,0.28934,2419.2,2418.9,2.56737]
[1728093410943,2.54752,2419.3,2418.9,2.56737]
[1728093411140,0.28933,2419.2,2418.9,2.56737]
[1728093413046,0.28933,2419.2,2418.9,2.278]
[1728093414347,2.54753,2419.3,2418.9,2.56736]
[1728093414536,0.28933,2419.2,2418.9,2.56736]
[1728093414742,2.2582,2419.3,2418.9,2.278]
[1728093415046,0.28935,2419.1,2418.9,2.278]
[1728093417643,0.28934,2419.2,2418.9,2.56736]
[1728093417850,1.50753,2419.3,2419.0,1.32935]
[1728093418051,0.8314,2419.3,2419.1,0.28934]
[1728093418539,0.8314,2419.3,2419.2,0.42]
[1728093421150,0.3934,2419.6,2419.2,0.42]
[1728093421354,0.8146,2419.6,2419.5,1.04]
[1728093421547,0.424,2419.6,2419.5,1.04]
[1728093421851,0.424,2419.6,2419.5,1.4284]
[1728093423252,0.424,2419.6,2419.5,0.3884]
[1728093423253,0.71328,2419.6,2419.5,0.3884]
[1728093424251,5.5968,2419.6,2419.1,3.2078]
[1728093424454,0.28936,2419.0,2418.9,0.3902]
[1728093424646,0.28938,2418.8,2418.7,3.2078]
[1728093424849,0.4008,2418.9,2418.7,3.2078]
[1728093425042,1.04,2418.8,2418.6,0.8344]
[1728093425243,0.28939,2418.7,2418.6,0.8344]
[1728093425650,1.04,2418.8,2418.6,0.8344]
[1728093425849,0.8237,2418.9,2418.7,1.04]
[1728093425850,1.11308,2418.9,2418.7,1.04]
[1728093426051,0.8237,2418.9,2418.7,1.04]
[1728093426455,1.11308,2418.9,2418.7,1.04]
[1728093428156,0.28938,2418.8,2418.7,1.04]
[1728093428456,0.28938,2418.8,2418.6,0.8344]
[1728093428654,0.8237,2418.9,2418.6,0.8344]
[1728093428861,0.28939,2418.7,2418.6,0.4235]
[1728093429563,0.28939,2418.7,2418.4,4.93002]
[1728093431561,1.32939,2418.8,2418.5,0.28941]
[1728093435059,1.04,2418.8,2418.5,0.28941]
[1728093435360,1.32939,2418.8,2418.5,0.28941]
[1728093437761,1.32939,2418.8,2418.4,1.4328]
[1728093437965,1.32939,2418.8,2418.6,0.2894]
[1728093438871,0.3969,2418.7,2418.5,0.28941]
[1728093439366,0.4266,2418.6,2418.5,0.28941]
[1728093447470,0.4266,2418.6,2418.5,1.37488909]
[1728093450366,0.4266,2418.6,2418.5,1.90075934]
[1728093451375,0.4266,2418.6,2418.5,3.47192176]
[1728093451681,0.4266,2418.6,2418.5,1.90075934]
[1728093451872,0.4266,2418.6,2418.5,3.47193064]
[1728093452274,0.4266,2418.6,2418.5,3.47205122]
[1728093452677,0.4266,2418.6,2418.5,2.94606039]
[1728093452870,0.4266,2418.6,2418.5,3.47206114]
[1728093453178,0.4266,2418.6,2418.5,3.47223599]
[1728093454879,0.4266,2418.6,2418.5,3.47261352]
[1728093455281,0.4266,2418.6,2418.5,4.01535307]
[1728093455982,0.4266,2418.6,2418.5,3.48935232]
[1728093456174,0.4266,2418.6,2418.5,4.01553502]
[1728093459786,0.4266,2418.6,2418.5,4.01567617]
[1728093463688,0.4266,2418.6,2418.5,4.01570339]
[1728093464789,0.4266,2418.6,2418.5,4.01589777]
[1728093465787,0.4266,2418.6,2418.5,4.01605779]
[1728093467391,0.4266,2418.6,2418.5,4.01615804]
[1728093467590,0.716,2418.6,2418.5,0.52630271]
[1728093467886,0.28942,2418.5,2418.4,1.08344957]
[1728093468088,0.28943,2418.4,2418.3,1.08344957]
[1728093468282,0.28943,2418.4,2418.3,3.18309224]
[1728093468480,1.74832,2418.5,2418.3,3.18309224]
[1728093468692,1.4589,2418.5,2418.3,1.08344957]
[1728093468892,0.28943,2418.4,2418.3,1.08344957]
[1728093469087,0.28943,2418.4,2418.3,1.61008052]
[1728093469693,0.28944,2418.3,2418.2,1.08344957]
[1728093469997,1.09134,2418.3,2418.2,1.61023479]
[1728093470191,0.8019,2418.3,2418.2,3.18415685]
[1728093470587,0.8019,2418.3,2418.2,1.61023479]
[1728093470995,0.8019,2418.3,2418.2,1.61036947]
[1728093472695,0.8019,2418.3,2418.2,0.5269199]
[1728093472896,0.8019,2418.3,2418.2,1.89981947]
[1728093473097,0.8019,2418.3,2418.2,2.30301947]
[1728093473398,0.8019,2418.3,2418.2,1.48664957]
[1728093473589,0.8019,2418.3,2418.2,2.01331408]
[1728093474604,0.8019,2418.3,2418.2,1.48664957]
[1728093475106,0.8019,2418.3,2418.2,2.01326748]
[1728093475406,0.8019,2418.3,2418.2,0.4032]
[1728093475795,0.8019,2418.3,2418.2,2.01322402]
[1728093477703,0.8019,2418.3,2418.2,1.48664957]
[1728093477906,0.8019,2418.3,2418.2,2.01314391]
[1728093479301,0.8019,2418.3,2418.2,2.01307635]
[1728093480403,0.8019,2418.3,2418.2,1.48664957]
[1728093481206,1.09134,2418.3,2418.2,1.48664957]
[1728093481510,1.09134,2418.3,2418.2,0.4032]
[1728093482203,1.09134,2418.3,2418.2,1.48664957]
[1728093482404,1.09134,2418.3,2418.2,0.4032]
[1728093485305,0.8019,2418.3,2418.2,0.4032]
[1728093485615,0.28944,2418.4,2418.2,3.23299957]
[1728093485803,0.28944,2418.4,2418.2,2.94354957]
[1728093487105,0.28943,2418.4,2418.2,2.94354957]
[1728093487315,0.28943,2418.4,2418.2,1.8601]
[1728093487809,0.28944,2418.3,2418.2,6.15134957]
[1728093488209,0.28944,2418.4,2418.2,5.0679]
[1728093488408,0.28944,2418.4,2418.2,6.15134957]
[1728093488610,0.28944,2418.4,2418.2,6.44079957]
[1728093488805,0.28944,2418.4,2418.2,6.15134957]
[1728093489818,0.28944,2418.4,2418.2,6.44079957]
[1728093490205,0.28944,2418.4,2418.2,6.15134957]
[1728093490419,0.8209,2418.5,2418.2,6.15134957]
[1728093490714,0.8209,2418.5,2418.2,6.44079957]
[1728093490715,1.11033,2418.5,2418.2,6.44079957]
[1728093490917,0.28943,2418.4,2418.2,6.44079957]
[1728093491112,0.28943,2418.4,2418.2,5.35735]
[1728093491323,0.28943,2418.4,2418.2,5.0679]
[1728093491516,0.28943,2418.4,2418.2,6.15134957]
[1728093491717,0.28942,2418.5,2418.3,0.28943]
[1728093491912,0.28941,2418.6,2418.4,1.04]
[1728093492106,0.28941,2418.6,2418.4,1.4374]
[1728093492316,0.28941,2418.6,2418.4,1.72683]
[1728093492816,0.28941,2418.6,2418.5,3.2078]
[1728093493920,0.4193,2418.7,2418.5,3.2078]
[1728093494220,0.70869,2418.7,2418.6,0.4036]
[1728093497224,0.70869,2418.7,2418.6,0.8029]
[1728093497714,0.28939,2418.7,2418.6,0.8029]
[1728093497914,0.4176,2418.8,2418.6,1.8429]
[1728093498115,0.70698,2418.8,2418.6,1.8429]
[1728093498420,0.70698,2418.8,2418.7,0.402]
[1728093527637,0.70698,2418.8,2418.7,1.48544957]
[1728093527936,0.70698,2418.8,2418.7,0.402]
[1728093528345,0.70698,2418.8,2418.7,2.01218906]
[1728093528939,0.70698,2418.8,2418.7,1.48544957]
[1728093529141,0.70698,2418.8,2418.7,2.01218626]
[1728093531344,0.70698,2418.8,2418.7,2.01229893]
[1728093533445,0.3956,2418.9,2418.8,0.28938]
[1728093533640,0.3936,2419.1,2418.8,4.51414513]
[1728093533834,0.68295,2419.1,2418.9,1.99805153]
[1728093534037,0.68295,2419.1,2418.9,1.85684957]
[1728093534241,0.68295,2419.1,2419.0,0.4113]
[1728093539958,0.4042,2419.2,2419.0,1.4513]
[1728093540162,0.28933,2419.2,2419.1,1.04]
[1728093540366,5.57171764,2419.4,2419.1,1.56691179]
[1728093540552,0.28933,2419.3,2419.2,0.93730335]
[1728093540855,0.28933,2419.3,2419.2,2.42025331]
[1728093541057,5.57171764,2419.4,2419.2,1.89334957]
[1728093541262,5.86103764,2419.4,2419.3,1.04]
[1728093541456,5.86103764,2419.4,2419.3,1.4626]
[1728093544963,5.45353764,2419.4,2419.3,1.4626]
[1728093545463,4.32871764,2419.4,2419.3,1.4626]
[1728093545670,3.6057,2419.7,2419.3,5.5962]
[1728093545865,0.28929,2419.6,2419.4,0.2893]
[1728093546068,0.28929,2419.6,2419.5,0.7927]
[1728093546968,0.28928,2419.6,2419.5,5.9655]
[1728093549473,0.28927,2419.7,2419.5,6.25479]
[1728093549676,0.28927,2419.7,2419.6,1.04]
[1728093549969,0.28927,2419.7,2419.6,1.4368]
[1728093571982,0.70296,2419.8,2419.6,1.4368]
[1728093572783,0.28926,2419.8,2419.6,1.4368]
[1728093574093,0.28927,2419.7,2419.6,1.4368]
[1728093579296,0.28927,2419.8,2419.6,1.4368]
[1728093582296,0.8081,2419.9,2419.6,1.4368]
[1728093582490,1.04,2419.8,2419.4,1.08344957]
[1728093582790,0.72328,2419.4,2419.0,1.48064957]
[1728093582989,0.72328,2419.4,2419.0,1.4372]
[1728093582990,0.28934,2419.1,2419.0,1.4372]
[1728093583202,0.28934,2419.1,2419.0,1.96334396]
[1728093583392,0.28934,2419.1,2419.0,1.4372]